Cogmind - Beta 15 @@@ ROGUE MODE // 2025.10.17 @ 17:46:10 Player: Conlarando Result: Destroyed by D-53 Grenadier with Mini Grenade Launcher Performance ------------- Evolutions (0) 0 Regions Visited (2) 400 Robots Destroyed (23) 115 Value Destroyed (420) 420 Prototype IDs (2) 40 Alien Tech Used (0) 0 Bonus (0) 0 TOTAL SCORE: 975 Bonus ------- None Cogmind --------- Core Integrity 0/250 Matter 300/300 Energy 100/100 System Corruption 4% Temperature Cool (0) Movement Core (350) Ox6 Location -10/Mines Parts ------- > --- POWER (1) -------- (None) > --- PROPULSION (2) --- (None) > --- UTILITY (2) ------ Large Storage Unit > --- WEAPON (2) ------- (None) > --- INVENTORY (15) --- Light Treads Light Treads Light Treads Heat Sink Small Storage Unit Structural Scanner Visual Processing Unit Terrain Scanner Propulsion Shielding Light Assault Rifle Light Assault Rifle Light Assault Rifle Grenade Launcher Peak State ------------ > --- POWER ------------ Ion Engine > --- PROPULSION ------- Light Treads Light Treads > --- UTILITY ---------- Large Storage Unit High-capacity Matter Pod > --- WEAPON ----------- Assault Rifle Light Assault Rifle > --- INVENTORY -------- Ion Engine Light Treads Aluminum Leg Aluminum Leg Compact Wheel Heat Sink Small Storage Unit Structural Scanner Light Assault Rifle Grenade Launcher [Rating: 8] Favorites ----------- Power Ion Engine Engine Ion Engine Propulsion Light Treads Treads Light Treads Wheel Compact Wheel Utility Large Storage Unit Device Terrain Scanner Storage Large Storage Unit Weapon Light Assault Rifle Ballistic Gun Light Assault Rifle Launcher Grenade Launcher Build | -11 -10 -10 ------- Run | Yrd Mat Min Slots Evolved . | . . . Power . | . . . Propulsion . | . . . Utility . | . . . Weapon . | . . . Parts Attached 18 | 6 10 2 Power 2 | 1 1 . Engine 2 | 1 1 . Core . | . . . Reactor . | . . . Propulsion 5 | 2 3 . Treads 3 | . 3 . Leg . | . . . Wheel 2 | 2 . . Hover . | . . . Flight . | . . . Utility 5 | 1 4 . Device 1 | . 1 . Storage 4 | 1 3 . Processor . | . . . Hackware . | . . . Protection . | . . . Artifact . | . . . Weapon 6 | 2 2 2 Energy Gun . | . . . Energy Cannon . | . . . Ballistic Gun 5 | 2 2 1 Ballistic Cannon . | . . . Launcher 1 | . . 1 Special Weapon . | . . . Impact Weapon . | . . . Slashing Weapon . | . . . Piercing Weapon . | . . . Special Melee Weapon . | . . . Unidentified Prototypes . | . . . Parts Lost 10 | . 3 7 Power 1 | . . 1 Propulsion 4 | . 1 3 Utility 1 | . . 1 Weapon 4 | . 2 2 Highest Loss Streak 7 | . 2 7 To Critical Strikes . | . . . Average Backups 12 | 3 12 13 Power . | . . . Propulsion 4 | 2 4 3 Utility 4 | . 4 6 Weapon 3 | . 3 4 Tool/Special . | . . . Unused Backups 12 | . 3 9 Power . | . . . Propulsion 5 | . 2 3 Utility 4 | . . 4 Weapon 3 | . 1 2 Tool/Special . | . . . Average Slot Usage (%) 99 | . 99 93 Engine 14 | . 14 14 Treads 23 | . 23 24 Wheel 4 | . 4 2 Storage 27 | . 27 26 Ballistic Gun 27 | . 27 22 Peak Build Rating 8 | 6 8 8 Average Rating 7 | 4 7 7 On Entrance 4 | . 6 8 Naked Turns . | . . . Heaviest Build 32 | 13 32 31 Greatest Support 40 | 32 40 40 Greatest Overweight (x) 1 | . . 1 Average Overweight (x) . | . . . Largest Inventory Capacity 15 | 8 15 15 Average Capacity 13 | 7 13 15 Most Carried 15 | 6 15 14 Average Carried 12 | 3 12 13 Final Capacity 15 | 8 15 15 Final Carried 14 | 6 14 13 Class Distribution -------------------- 100% | Mutant Dominant Class ---------------- Mutant | -10/Materials Mutant | -10/Mines Resources | -11 -10 -10 ----------- Run | Yrd Mat Min Matter Collected 917 | 260 657 . Remotely . | . . . Salvage Created 630 | . 630 . Parts 42 | . 42 . Haulers Intercepted 2 | . 2 . Recyclers Shooed 3 | . 3 . Parts Field Recycled . | . . . Retrieved Matter . | . . . Parts Self-Destructed . | . . . Prevented . | . . . Kills | -11 -10 -10 ------- Run | Yrd Mat Min Combat Hostiles Destroyed 15 | . 15 . Guns 15 | . 15 . Classes Destroyed 7 | . 7 . Worker 1 | . 1 . Tunneler 1 | . 1 . Hauler 2 | . 2 . Operator 1 | . 1 . Watcher 3 | . 3 . Swarmer 8 | . 8 . Grunt 7 | . 7 . Best Kill Streak 3 | . 3 . Combat Bots Only 3 | . 3 . Max Kills in Single Turn 1 | . 1 . Gunslinging . | . . . Exploded . | . . . Melee . | . . . Uniques/NPCs Destroyed . | . . . Combat | -11 -10 -10 -------- Run | Yrd Mat Min Hostile Shots Fired 88 | . 74 14 Missed 16 | . 14 2 Hits 72 | . 60 12 Projectile 72 | . 60 12 AOE 14 | . . 14 Damage Taken 1338 | . 695 643 Core 271 | . 114 157 Absorbed by Shields . | . . . Regen/Repaired (Parts) 60 | . 60 . Core Remaining (%) 100 | 100 . . Volleys Fired 79 | . 76 3 Largest 2 | . 2 2 Hottest 40 | . 40 40 Shots Fired 157 | . 152 5 Gun 157 | . 152 5 Cannon . | . . . Launcher . | . . . Special . | . . . Kinetic 157 | . 152 5 Thermal . | . . . Explosive . | . . . Electromagnetic . | . . . Robot Hit Streak 27 | . 24 27 Robot Miss Streak 4 | . 4 1 Penetration Max . | . . . Secondary Targets 2 | . 2 . Max Gunslinging Chain 1 | . 1 . Shots Hit Robots 98 | . 94 4 Core Hits 44 | . 42 2 Critical Kills . | . . . Critical Parts Destroyed . | . . . Critical Strikes . | . . . Melee Attacks . | . . . Impact . | . . . Slashing . | . . . Piercing . | . . . Sneak Attacks . | . . . Combat Hostiles . | . . . Follow-up Attacks . | . . . Damage Inflicted 1032 | . 997 35 Guns 1032 | . 997 35 Cannons . | . . . Explosions . | . . . Melee . | . . . Ramming . | . . . Kinetic 1032 | . 997 35 Thermal . | . . . Explosive . | . . . Electromagnetic . | . . . Impact . | . . . Slashing . | . . . Piercing . | . . . Highest Corruption 4 | . . 4 Average Corruption 4 | . . 4 Corruption Purged . | . . . Corruption Blocked . | . . . Overload Shots . | . . . Overflow Damage . | . . . Projectiles . | . . . Explosions . | . . . Melee . | . . . Knockbacks . | . . . Impact . | . . . Kinetic . | . . . Secondary . | . . . Self-Inflicted Damage . | . . . Shots . | . . . Rammed . | . . . Targets Rammed . | . . . Kicked . | . . . Crushed . | . . . Highest Temperature 21 | . 21 . Average Temperature 8 | . 8 . Received Heat Transfer 279 | . 279 . Siege Activations . | . . . Martial Activations . | . . . Shielding Activations . | . . . Robots Disrupted . | . . . Combat Hostiles . | . . . Robots Corrupted . | . . . Combat Hostiles . | . . . Parts Fried . | . . . Impact Corruptions . | . . . Robots Melted . | . . . Combat Hostiles . | . . . Parts Melted . | . . . Heat Transferred . | . . . Parts Sabotaged . | . . . Parts Stolen . | . . . Parts Stripped . | . . . Power Chain Reactions . | . . . Alert | -11 -10 -10 ------- Run | Yrd Mat Min Maximum Alert Level . | . . . Low Security (%) 100 | 100 100 100 Level 1 . | . . . Level 2 . | . . . Level 3 . | . . . Level 4 . | . . . Level 5 . | . . . High Security . | . . . Max Security . | . . . Peak Influence 90 | . 90 . Initial . | . . . Average 16 | . 17 . Influence Increases 448 | . 448 . Destroy 0b10 Robot/C 300 | . 300 . Destroy 0b10 Robot/NC 40 | . 40 . Destroy Leader 60 | . 60 . Successful Hack 18 | . 18 . Lose Combat Pursuer 30 | . 30 . Influence Decreases 448 | . 448 . Time Decay 421 | . 421 . Lost Part 27 | . 27 . Squads Dispatched 1 | . 1 . Investigation 1 | . 1 . Extermination . | . . . Reinforcement . | . . . Assault . | . . . Garrison . | . . . Intercept . | . . . Searches Triggered . | . . . Construction Impeded . | . . . Haulers Reinforced . | . . . Active Scanning Responses . | . . . Cargo Convoy Interrupts . | . . . Stealth | -11 -10 -10 --------- Run | Yrd Mat Min Distress Signals 3 | . 3 . Communications Jammed . | . . . Distress Signals . | . . . Times Spotted 31 | . 29 2 Peak Tracking Total 4 | . 4 2 Tactical Retreats 1 | . 1 . Traps | -11 -10 -10 ------- Run | Yrd Mat Min Traps Triggered 1 | . 1 . Indirectly . | . . . Trap Hack Attempts . | . . . Triggered . | . . . Disarmed 4 | . 4 . Reprogrammed . | . . . Reused . | . . . Traps Extracted . | . . . Installed . | . . . Triggered . | . . . Machines | -11 -10 -10 ---------- Run | Yrd Mat Min Machines Disabled . | . . . Max in Single Turn . | . . . Machines Repaired . | . . . Machines Dismantled . | . . . Machines Sabotaged . | . . . Overloaded Fab Kills . | . . . Hacking | -11 -10 -10 --------- Run | Yrd Mat Min Machines Accessed 10 | . 10 . Terminals 7 | . 7 . Fabricators . | . . . Repair Stations 1 | . 1 . Recycling Units 2 | . 2 . Scanalyzers . | . . . Garrison Access . | . . . Total Hacks 27 | . 27 . Successful 15 | . 15 . Failed 12 | . 12 . Catastrophic 3 | . 3 . Database Lockouts . | . . . Manual 4 | . 4 . Terminals 21 | . 21 . Fabricators . | . . . Repair Stations 2 | . 2 . Recycling Units 4 | . 4 . Scanalyzers . | . . . Garrison Access . | . . . Terminal Hacks 10 | . 10 . Prototype ID Bank 1 | . 1 . Terminal Index 1 | . 1 . Alert Level 1 | . 1 . Locate Traps 2 | . 2 . Disarm Traps 1 | . 1 . Dispatch Records 1 | . 1 . Investigation Status 1 | . 1 . Registered Prototypes 1 | . 1 . Zone Layout 1 | . 1 . Fabricator Hacks . | . . . Repair Station Hacks 2 | . 2 . Scan Component 1 | . 1 . Repair 1 | . 1 . Recycling Unit Hacks 3 | . 3 . Report Inventory 1 | . 1 . Retrieve Components 2 | . 2 . Scanalyzer . | . . . Garrison Access Hacks . | . . . Unauthorized Hacks . | . . . Terminals . | . . . Fabricators . | . . . Repair Stations . | . . . Recycling Units . | . . . Scanalyzers . | . . . Garrison Access . | . . . Data Cores Recovered . | . . . Used . | . . . Hacking Detections 10 | . 10 . Full Trace Events 2 | . 2 . Feedback Events . | . . . Feedback Blocked . | . . . Robot Schematics Acquired . | . . . Robots Built . | . . . Authchips . | . . . Time . | . . . Total Robot Build Rating . | . . . Part Schematics Acquired . | . . . Parts Built . | . . . Authchips . | . . . Time . | . . . Total Part Build Rating . | . . . Parts Repaired 1 | . 1 . Time 26 | . 26 . Parts Recycled . | . . . Recycled Matter . | . . . Retrieved Matter . | . . . Retrieved Components 11 | . 11 . Parts Scanalyzed . | . . . Part Schematics Acquired . | . . . Parts Damaged . | . . . Bothacking | -11 -10 -10 ------------ Run | Yrd Mat Min Used RIF Installer . | . . . Robots Hacked . | . . . Non-combat . | . . . Combat . | . . . Robot Hacks Applied . | . . . Relay Couplers Released . | . . . Fabnet Peak Effective % . | . . . Robots Rewired . | . . . Allies Hacked . | . . . Hacks Repelled . | . . . Allies | -11 -10 -10 -------- Run | Yrd Mat Min Total Allies . | . . . Largest Group . | . . . Highest-Rated Group . | . . . Highest-Rated Ally . | . . . Total Orders . | . . . Ally Attacks . | . . . Total Damage . | . . . Kills . | . . . Allies Corrupted . | . . . Allies Melted . | . . . Intel | -11 -10 -10 ------- Run | Yrd Mat Min Active Infowar (turns) 1 | . 1 . Terrain 1 | . 1 . Robot Analysis Total . | . . . Derelict Logs Recovered . | . . . Drone Launches . | . . . Drone Recoveries . | . . . Exploration | -11 -10 -10 ------------- Run | Yrd Mat Min Turns Passed 2182 | 50 2073 59 Spaces Moved 1242 | 37 1180 25 Core 2 | 2 . . Treads 962 | . 942 20 Legs . | . . . Wheels 278 | 35 238 5 Hover . | . . . Flight . | . . . Fastest Speed 50 | 50 100 115 Average Speed 146 | 97 147 151 Slowest Speed 160 | 100 160 160 Overloaded Moves . | . . . Propulsion Burnouts . | . . . Robots Hopped . | . . . Potential Cave-ins 2 | . . 2 Cave-ins Triggered 1 | . . 1 Exploration Rate (%) 37 | 3 99 10 Regions Visited 2 Branch Regions 1 Pre-discovered Areas 1 | . . 1 Known Exits Taken . | . . . Unknown Exits Taken 2 | 1 1 . Scrap Searched . | . . . Spaces Dug . | . . . Terrain Destroyed . | . . . Melee . | . . . Projectile . | . . . AOE . | . . . Terrain Rammed . | . . . Walls Destroyed . | . . . Machines Disabled . | . . . Actions | -11 -10 -10 --------- Run | Yrd Mat Min Total 1465 | 48 1376 41 Wait 87 | . 77 10 Move 1239 | 36 1179 24 Hop . | . . . Pick Up 25 | 6 19 . Fast Attach 10 | 6 4 . Attach 8 | . 7 1 Detach 1 | . 1 . Swap 4 | . 2 2 Drop 11 | . 11 . Fire 79 | . 76 3 Melee . | . . . Ram . | . . . Kick . | . . . Crush . | . . . Escape Stasis 1 | . . 1 Rewire . | . . . Trap . | . . . Miscellaneous . | . . . Route ------- -11/Scrapyard -10/Materials (discovered 5 exits: [*Mat x3] / [*Min] / [*Sub]) -10/Mines History --------- Turn | Location | Event 29 | -11/Scrapyard | Discovered new exit (range 16) 51 | -11/Scrapyard | Entered Materials 155 | -10/Materials | Discovered new exit (range 11) 306 | -10/Materials | Build established: Mutant 718 | -10/Materials | Discovered new exit (range 15) 878 | -10/Materials | Repaired Assault Rifle 1162 | -10/Materials | Discovered new exit (range 15) 1799 | -10/Materials | Discovered new exit (range 7) 2071 | -10/Materials | Discovered new exit (range 9) 2124 | -10/Materials | Entered Mines 2125 | -10/Mines | Learned location of Storage (-8) 2148 | -10/Mines | Assembled infested the area 2153 | -10/Mines | Assisted by a Guerilla fighting off Assembled 2171 | -10/Mines | Core integrity fell below 50% 2180 | -10/Mines | Core integrity fell below 20% 2182 | -10/Mines | Crushed by falling debris 2183 | -10/Mines | Destroyed by D-53 Grenadier with Mini Grenade Launcher Last Messages --------------- 02160_ K-01 Serf collects debris. 02168_ C-30 ARC bursts open, deploying its payload. 02168_ D-53 Grenadier unfolds itself. 02168_ Core Extractor disabled. 02170_ Sml. Matter Pod destroyed. 02172_ The unstable cave ceiling collapses. 02173_ Assault Rifle destroyed. 02175_ The unstable cave ceiling collapses. 02177_ Lgt. Treads destroyed. 02180_ U-05 Engineer lays Concrete. 02181_ K-01 Serf destroyed. 02181_ Lgt. Assault Rifle destroyed. 02181_ Ion Engine destroyed. 02181_ T-07 Excavator is excavating. 02181_ U-05 Engineer lays Concrete. 02182_ The unstable cave ceiling collapses. 02182_ Crushed by falling debris. 02182_ Com. Wheel destroyed. 02182_ System corrupted by crushing effect (+4). Map ----- +----------------------------------------------------+ | ????????????????????????????????????????????????? | | ????????????????????????????????????????????????? | | ????????????????????????????????????????????????? | | ????????????????????????????????????????????????? | | ????????????????????????????????????????????????? | | ????????????????????????????????????????????????? | | ????????????????????????????????????????????????? | | ????????????????????????????????????????????????? | | ????????????????????????????????????????????????? | | ????????????????????????????????###?????????????? | | ???????????????????????????????? #?????????????? | | ????????????????????????????????# #?????????????? | | ????????????????????????????????# #???????#####?? | | ????????????????????????????????# #??????## ##? | | ??????????????????????????####### #??????# #? | | ?????????????????????????## # ##?????# #? | | ????????????????????????## ####### #? | | ???????????????????????## u #?? | | ???????????????????????# ###### #?? | | ??????????????????????## #????# #?? | | ??????????????????????# d #????# #?? | | ??????????????????????# d #????# ##?? | | ??????????????????????# #????## #??? | | ??????????????????????# #?????# #??? | | ?????????????????# #### # " #?????####??? | | ?????????????????# r @ """ #???????????? | | ?????????????????# t # """ #??????????? | | ?????????????????####### # ## #??????????? | | ???????????????????????######## ##??????????? | | ??????????????????????????????#######???????????? | | ????????????????????????????????????????????????? | | ????????????????????????????????????????????????? | | ????????????????????????????????????????????????? | | ????????????????????????????????????????????????? | | ????????????????????????????????????????????????? | | | | | | | | | | | | | | | | | | | | | | | | | | | | | | | +----------------------------------------------------+ Best States ------------- Heat Dissipation 25 Energy Generation 10 Energy Capacity 250 Matter Stores 500 Matter Capacity 500 Sight Range 16 Terrain Scan Density 10 Evasion (%) 40 Recoil Reduction 2 Item Schematics ----------------- None Robot Schematics ------------------ None Fabricated ------------ Nothing Repaired ---------- Assault Rifle | 40% | -10/Materials Alien Tech Used ----------------- None Achievements -------------- None Challenges ------------ None Game ------ Seed GuidedHackingBeam Manual? 0 Play Time 00:21:28 Cumulative 31.9 hours Start 2025.10.17 @ 17:25:53 End 2025.10.17 @ 17:46:10 Sessions 1 Manual Loads 0 Difficulty Rogue Special Mode None Game No. 43 Rogue 43 Adventurer 0 Explorer 0 Win Type - Total 1 Types 1/0/0/0/0/0/0/0/0/0 Lore% 5 Gallery% 27 Achievement% 27 Wizard Run 0 Options --------- Layout 1 ASCII 0 Keyboard 0 Movement Mouse Keybinds 0 Fullscreen 1 Font 24/Terminus Map View 50x35 Zoom Use 0% Tactical HUD 1 Map Filters NONE Filters NONE Steam 1 RUN: 4d743df2-3f6c-43d1-a3cc-5a3f78bc443d